lending/lending_fUSD_20260104
["ID","MTS","AMOUNT","RATE_DAILY","PERIOD"]
[400409572,1767526027062,2521.21,0.00043695,120]
[400409573,1767526027470,2521.21,0.00043695,120]
[400409574,1767526027706,2521.21,0.00043695,120]
[400409575,1767526027971,2521.21,0.00043695,120]
[400409576,1767526028204,2521.21,0.00043695,120]
[400409577,1767526028438,2521.21,0.00043695,120]
[400409578,1767526028668,2521.21,0.00043695,120]
[400409579,1767526028897,2521.21,0.00043695,120]
[400409580,1767526029130,2521.21,0.00043695,120]
[400409581,1767526029755,2521.21,0.00043695,120]
[400409582,1767526029998,2521.21,0.00043695,120]
[400409583,1767526030234,2521.21,0.00043695,120]
[400409584,1767526030495,2521.21,0.00043695,120]
[400409585,1767526030711,2521.21,0.00043695,120]
[400409586,1767526030945,2521.21,0.00043695,120]
[400409587,1767526031176,2521.21,0.00043695,120]
[400409588,1767526031407,2521.21,0.00043695,120]
[400409589,1767526031639,2521.21,0.00043695,120]
[400409590,1767526031873,2521.21,0.00043695,120]
[400409591,1767526032101,2521.24084594,0.00043695,120]
[400409592,1767526032816,3529.2505,0.00016598,2]
[400409593,1767526033273,3783.41608509,0.0001305,2]
[400409594,1767526033701,259.34857628,0.000101,2]
[400409595,1767526055033,392.26267941,0.00043695,120]
[400409600,1767526063574,181.9156,0.00016598,2]
[400409602,1767526070432,289.79247824,0.00014,2]
[400409603,1767526070459,708.34438257,0.00014,2]
[400409604,1767526075695,166.8755,0.00016598,2]
[400409606,1767526082022,9124.79011743,0.00016598,2]
[400409607,1767526082049,10000.01,0.00016598,2]
[400409608,1767526082075,10000.01,0.00016598,2]
[400409609,1767526082102,7631.63468257,0.00016598,2]
[400409610,1767526084797,2368.37531743,0.0001439,2]
[400409611,1767526084823,6633.49782176,0.0001439,2]
[400409612,1767526088683,169.29155206,0.00016598,2]
[400409615,1767526095235,1927.91000596,0.0001,2]
[400409616,1767526097089,390.76805178,7.888e-05,2]
[400409617,1767526097947,1000.0,0.00043695,60]
[400409618,1767526098443,878.54256844,0.00015,2]
[400409619,1767526098468,5063.27448442,0.00015,2]
[400409620,1767526098964,193.0,0.000165,2]
[400409621,1767526107830,401.20446721,0.00015,2]
[400409623,1767526109472,267.77393416,0.000107,2]
[400409624,1767526109885,506.76290238,0.000154,2]
[400409625,1767526111800,3567.99421183,0.00014999,2]
[400409626,1767526111823,1446.92578817,0.00014999,2]
[400409627,1767526113217,2045.05502519,0.00015807,2]
[400409628,1767526113748,500.0,0.00016697,2]
[400409631,1767526127502,501.81860917,0.00016697,2]
[400409638,1767526131662,500.0,0.00016697,2]
[400409639,1767526131697,500.0,0.00016697,2]
[400409640,1767526131729,500.0,0.00016697,2]
[400409641,1767526131759,500.0,0.00016697,2]
[400409642,1767526131792,500.0,0.00016697,2]
[400409643,1767526131826,194.2569902,0.00016697,2]
[400409644,1767526141201,300.0,0.00016697,2]
[400409645,1767526149353,499.99999999,0.00016697,2]
[400409646,1767526151569,1573.0508,0.00016598,2]
[400409647,1767526170500,500.0,0.00043698,120]
[400409648,1767526170737,286.87391713,0.00043698,120]
[400409649,1767526182692,438.90278728,0.00016536,2]
[400409650,1767526182715,1413.51721272,0.00016536,2]
[400409651,1767526197176,8586.49278728,0.00016598,2]
[400409652,1767526197203,10000.01,0.00016598,2]
[400409653,1767526197229,10000.01,0.00016598,2]
[400409654,1767526197254,10000.01,0.00016598,2]
[400409655,1767526197279,10000.01,0.00016598,2]
[400409656,1767526197303,10000.01,0.00016598,2]
[400409657,1767526197330,10000.01,0.00016598,2]
[400409658,1767526197355,10000.01,0.00016598,2]
[400409659,1767526197380,10000.01,0.00016598,2]
[400409665,1767526210300,-300.0,0.00016597,2]
[400409666,1767526210332,-1200.0,0.00016597,2]
[400409667,1767526210361,-550.0,0.00016597,2]
[400409668,1767526210391,-2500.0,0.00016598,2]
[400409669,1767526221902,200.0,0.00016525,2]
[400409677,1767526231994,200.17463596,0.00016597,2]
[400409678,1767526232011,-520.00319952,0.00016598,2]
[400409679,1767526232121,-2064.94711756,0.00016598,2]
[400409680,1767526232133,-1848.46471605,0.00016598,2]
[400409681,1767526232144,-1300.0,0.00016598,2]
[400409682,1767526232155,-47690.53791946,0.00016598,2]
[400409683,1767526232167,-93703.79623369,0.00016598,2]
[400409684,1767526232786,354.91744336,0.00016597,2]
[400409687,1767526238061,-3542.72907998,0.00016598,2]
[400409688,1767526238116,-57682.95017283,0.00016598,2]
[400409689,1767526238130,-55109.83907602,0.00016598,2]
[400409690,1767526238170,-32003.30018096,0.00016598,2]
[400409691,1767526238226,-328.31959918,0.00016598,2]
[400409744,1767526240064,-242028.7626935,0.00016598,2]
[400409745,1767526240090,-27801.44876039,0.00016598,2]
[400409746,1767526240168,-79778.39253198,0.00016598,2]
[400409747,1767526240223,-13866.1066969,0.00016598,2]
[400409748,1767526240234,-380.30947352,0.00016598,2]
[400409749,1767526240281,-2900.18651994,0.00016598,2]
[400409750,1767526240390,-12560.20347121,0.00016598,2]
[400409751,1767526240401,-1854.36,0.00016598,2]
[400409752,1767526240412,-3225.8509518,0.00016598,2]
[400409753,1767526240425,-231222.91881823,0.00016598,2]
[400409754,1767526240435,-818.0844,0.00016598,2]
[400409755,1767526240445,-52197.8421,0.00016598,2]
[400409756,1767526240455,-2500.0,0.00016598,2]
[400409757,1767526240464,-894.91811465,0.00016696,2]
[400409758,1767526240474,-163.1260951,0.00016698,2]
[400409759,1767526240483,-163.1260951,0.00016698,2]
[400409760,1767526240493,-163.1260951,0.00016698,2]
[400409761,1767526240502,-300.0,0.00016698,2]
[400409762,1767526240511,-300.0,0.00016698,2]
[400409763,1767526240525,-172.686956,0.00016698,2]
[400409764,1767526240534,-600.0,0.00016698,2]
[400409765,1767526240544,-250.0,0.00016698,2]
[400409766,1767526240553,-195.0,0.00016698,2]
[400409767,1767526240564,-2500.0,0.00016698,2]
[400409768,1767526240574,-600.0,0.00016698,2]
[400409769,1767526240584,-195.0,0.00016698,2]
[400409770,1767526240593,-195.0,0.00016698,2]
[400409771,1767526240603,-1390.27839957,0.00016743,2]
[400409772,1767526240612,-1390.27839957,0.00016887,2]
[400409773,1767526240622,-250.0,0.00017,2]
[400409774,1767526240632,-160.0,0.00017,2]
[400409775,1767526240642,-16046.14160851,0.0001702,2]
[400409776,1767526240651,-1390.27839957,0.00017032,2]
[400409777,1767526240661,-200.0,0.00017037,2]
[400409778,1767526240671,-228.33545764,0.00017037,2]
[400409779,1767526240680,-42425.43378278,0.000171,2]
[400409780,1767526240690,-2696.69,0.0001715,2]
[400409781,1767526240700,-1390.27839957,0.00017177,2]
[400409782,1767526240710,-963.20464126,0.00017321,2]
[400409783,1767526240723,-1390.27839957,0.00017321,2]
[400409784,1767526240733,-963.20464126,0.00017466,2]
[400409785,1767526240742,-1390.27839957,0.00017466,2]
[400409786,1767526240752,-210.0,0.00017482,2]
[400409787,1767526240763,-2611.39,0.00017511,2]
[400409788,1767526240775,-210.0,0.00017544,2]
[400409789,1767526240785,-210.0,0.00017563,2]
[400409790,1767526240794,-963.20464126,0.00017611,2]
[400409791,1767526240804,-1390.27839957,0.00017611,2]
[400409792,1767526240814,-210.0,0.00017616,2]
[400409793,1767526240824,-210.0,0.00017621,2]
[400409794,1767526240835,-210.0,0.00017637,2]
[400409795,1767526240845,-545.72694858,0.0001764,2]
[400409796,1767526240855,-210.0,0.0001768,2]
[400409797,1767526240865,-210.0,0.0001769,2]
[400409798,1767526240875,-963.20464126,0.00017755,2]
[400409799,1767526240885,-1390.27839957,0.00017755,2]
[400409800,1767526240894,-2542.75329,0.0001782,2]
[400409801,1767526240904,-2542.75329,0.0001782,2]
[400409802,1767526240913,-500.0,0.0001782,2]
[400409803,1767526240923,-2542.75329,0.0001783,2]
[400409804,1767526240933,-2542.7533,0.0001786,2]
[400409805,1767526240943,-2542.75329,0.0001788,2]
[400409806,1767526240952,-422.71458731,0.00017889,2]
[400409807,1767526240961,-724.36805306,0.00017891,2]
[400409808,1767526240971,-10000.0,0.000179,2]
[400409809,1767526240980,-963.20464126,0.000179,2]
[400409810,1767526240990,-1390.27839957,0.000179,2]
[400409811,1767526240999,-2542.75329,0.0001791,2]
[400409812,1767526241009,-210.0,0.00017914,2]
[400409813,1767526241019,-210.0,0.00017943,2]
[400409814,1767526241028,-222.79183719,0.00017984,2]
[400409815,1767526241038,-1167.0,0.00017994,2]
[400409816,1767526241048,-901.2249603,0.00017994,2]
[400409817,1767526241057,-159027.5505682,0.00017994,2]
[400409818,1767526241066,-186525.0858139,0.00017994,2]
[400409819,1767526241075,-3849460.69488737,0.00018,2]
[400409820,1767526241088,-3608.27472446,0.00018,2]
[400409821,1767526241099,-1275.68569252,0.00018,2]
[400409822,1767526241123,-883.15138334,0.00018,2]
[400409831,1767526243595,-3050.0,0.00018,2]
[400409832,1767526243608,-45107.23555853,0.00018,2]
[400409833,1767526243619,-6883.494434,0.00018,2]
[400409834,1767526243651,-8444.72929162,0.00018,2]
[400409835,1767526243662,-721.8465621,0.00018,2]
[400409836,1767526243673,-1218.0,0.00018,2]
[400409837,1767526243705,-1424.78111937,0.00018,2]
[400409838,1767526243717,-959.63445397,0.00018,2]
[400409839,1767526244350,-1844.40697459,0.00018,2]
[400409842,1767526246051,-323744.52377236,0.00018,2]
[400409843,1767526246063,-1789.25426987,0.00018,2]
[400409844,1767526246075,-2332.25914526,0.00018,2]
[400409845,1767526246086,-993.0,0.00018,2]
[400409846,1767526246098,-5712.99188177,0.00018,2]
[400409847,1767526246110,-4030.4875031,0.00018,2]
[400409848,1767526246164,-9300.4639212,0.00018,2]
[400409849,1767526246176,-753.01482349,0.00018,2]
[400409850,1767526246187,-1388.83786997,0.00018,2]
[400409851,1767526246199,-6286.95490451,0.00018,2]
[400409852,1767526246219,-19014.09979809,0.00018,2]
[400409853,1767526247309,-3767.31353861,0.00018,2]
[400409854,1767526247321,-651.4799978,0.00018,2]
[400409855,1767526265779,322.6107,0.00043698,30]
[400409857,1767526268832,250.0,0.00043698,30]
[400409859,1767526269420,250.0,0.00043698,30]
[400409861,1767526270048,250.0,0.00043698,30]
[400409862,1767526270758,250.0,0.00043698,30]
[400409863,1767526271381,250.0,0.00043698,30]
[400409864,1767526272130,250.0,0.00043698,30]
[400409865,1767526272789,250.0,0.00043698,30]
[400409868,1767526273477,250.0,0.00043698,30]
[400409870,1767526276662,200.0,0.00017037,2]
[400409871,1767526277272,207.4,0.00017037,2]
[400409872,1767526277895,215.0738,0.00017037,2]
[400409873,1767526278307,500.0,0.00016597,2]
[400409874,1767526278367,500.0,0.00016597,2]
[400409875,1767526278400,500.0,0.00016597,2]
[400409876,1767526278433,156.81401212,0.00016597,2]
[400409877,1767526278464,500.0,0.00016597,2]
[400409878,1767526278493,333.82392571,0.00017037,2]
[400409879,1767526278524,500.0,0.00016597,2]
[400409880,1767526278559,500.0,0.00016597,2]
[400409881,1767526278590,500.0,0.00016597,2]
[400409882,1767526278622,500.0,0.00016597,2]
[400409884,1767526304767,500.0,0.00043698,120]
[400409885,1767526305005,500.0,0.00043698,120]
[400409886,1767526305248,500.0,0.00043698,120]
[400409887,1767526305484,501.64708903,0.00043698,120]
[400409889,1767526312298,3619.0,0.0001719,2]
[400409890,1767526317797,6326.67369967,0.00043698,30]
[400409893,1767526325844,151.0,0.00043698,120]
[400409894,1767526326464,151.0,0.00043698,120]
[400409895,1767526327083,151.0,0.00043698,120]
[400409896,1767526327349,200.0,0.00043698,120]
[400409897,1767526327714,151.0,0.00043698,120]
[400409898,1767526328453,151.0,0.00043698,120]
[400409899,1767526328502,200.0,0.00043698,120]
[400409900,1767526328965,151.0,0.00043698,120]
[400409901,1767526329052,200.0,0.00043698,120]
[400409902,1767526329586,151.0,0.00043698,120]
[400409903,1767526330203,151.0,0.00043698,120]
[400409904,1767526330835,151.0,0.00043698,120]
[400409905,1767526331452,151.0,0.00043698,120]
[400409906,1767526332058,151.0,0.00043698,120]
[400409907,1767526334207,200.0,0.00043698,120]
[400409908,1767526334818,200.0,0.00043698,120]
[400409909,1767526338816,250.0,0.00043698,120]
[400409910,1767526339447,250.0,0.00043698,120]
[400409911,1767526340085,250.0,0.00043698,120]
[400409912,1767526340704,250.0,0.00043698,120]
[400409913,1767526341362,250.0,0.00043698,120]
[400409914,1767526342000,250.0,0.00043698,120]
[400409917,1767526349333,10000.01,0.00016598,2]
[400409918,1767526349358,10000.01,0.00016598,2]
[400409919,1767526349381,10000.01,0.00016598,2]
[400409920,1767526349404,10000.01,0.00016598,2]
[400409921,1767526349427,10000.01,0.00016598,2]
[400409922,1767526349450,10000.01,0.00016598,2]
[400409923,1767526349474,10000.01,0.00016598,2]
[400409924,1767526349497,10000.01,0.00016598,2]
[400409925,1767526349520,10000.01,0.00016598,2]
[400409926,1767526349544,6381.01,0.00016598,2]
[400409927,1767526349568,10000.01,0.00016598,2]
[400409928,1767526349592,10000.01,0.00016598,2]
[400409929,1767526349615,10000.01,0.00016598,2]
[400409930,1767526349639,10000.01,0.00016598,2]
[400409931,1767526349662,10000.01,0.00016598,2]
[400409932,1767526349685,10000.01,0.00016598,2]
[400409933,1767526349708,10000.01,0.00016598,2]
[400409934,1767526349731,10000.01,0.00016598,2]
[400409935,1767526349754,10000.01,0.00016598,2]
[400409938,1767526379272,500.0,0.00043698,120]
[400409940,1767526379498,500.0,0.00043698,120]
[400409945,1767526385729,334.5472959,0.00043698,120]
[400409950,1767526393985,-300.0,0.00016597,2]
[400409951,1767526394018,-550.0,0.00016597,2]
[400409952,1767526394528,1200.0,0.00016597,2]
[400409964,1767526408372,157.79600896,0.00016597,2]
[400409965,1767526408429,500.0,0.00016597,2]
[400409966,1767526413923,2252.99061225,0.00016498,2]
[400409970,1767526418035,4189.22337879,0.00016515,2]
[400409971,1767526418059,5018.11457121,0.00016515,2]
[400409972,1767526427032,1953.46131777,0.00016498,2]
[400409973,1767526442602,500.0,0.00043698,120]
[400409974,1767526442833,253.2696039,0.00043698,120]
[400409975,1767526459012,3028.43411102,0.00016498,2]
[400409976,1767526459034,3489.22853341,0.00016498,2]
[400409977,1767526471694,500.0,0.00016597,2]
[400409978,1767526472178,500.0,0.00016597,2]
[400409979,1767526477501,266.69628261,0.00016597,2]
[400409980,1767526477535,500.0,0.00016597,2]
[400409982,1767526477737,500.0,0.00016597,2]
[400409983,1767526477788,500.0,0.00016597,2]
[400409984,1767526477844,500.0,0.00016597,2]
[400409985,1767526477874,456.14070919,0.00016597,2]
[400409988,1767526478717,500.0,0.00016597,2]
[400409998,1767526481475,500.0,0.00016597,2]
[400409999,1767526481511,300.08527848,0.00016597,2]
[400410000,1767526481543,500.0,0.00016597,2]
[400410001,1767526481573,245.20272775,0.00016597,2]
[400410002,1767526481605,500.0,0.00016597,2]
[400410003,1767526481636,242.65646856,0.00016597,2]
[400410004,1767526481663,257.34353144,0.00016597,2]
[400410005,1767526481695,500.0,0.00016597,2]
[400410006,1767526481727,500.0,0.00016597,2]
[400410007,1767526481757,500.0,0.00016597,2]
[400410008,1767526481789,500.0,0.00016597,2]
[400410009,1767526481820,500.0,0.00016597,2]
[400410010,1767526481854,500.0,0.00016597,2]
[400410011,1767526481886,500.0,0.00016597,2]
[400410012,1767526481924,500.0,0.00016597,2]
[400410013,1767526481960,500.0,0.00016597,2]
[400410014,1767526481991,500.0,0.00016597,2]
[400410015,1767526482027,500.0,0.00016597,2]
[400410016,1767526482058,500.0,0.00016597,2]
[400410017,1767526482089,500.0,0.00016597,2]
[400410018,1767526482119,500.0,0.00016597,2]
[400410019,1767526482151,500.0,0.00016597,2]
[400410020,1767526482181,500.0,0.00016597,2]
[400410021,1767526482211,500.0,0.00016597,2]
[400410022,1767526482245,500.0,0.00016597,2]
[400410023,1767526482274,500.0,0.00016597,2]
[400410024,1767526482308,242.66646856,0.00016597,2]
[400410025,1767526482335,257.33353144,0.00016597,2]
[400410026,1767526482367,500.0,0.00016597,2]
[400410027,1767526482397,500.0,0.00016597,2]
[400410028,1767526482428,500.0,0.00016597,2]
[400410029,1767526482460,500.0,0.00016597,2]
[400410030,1767526482491,500.0,0.00016597,2]
[400410031,1767526482530,500.0,0.00016597,2]
[400410032,1767526482570,500.0,0.00016597,2]
[400410033,1767526482607,500.0,0.00016597,2]
[400410034,1767526482638,500.0,0.00016597,2]
[400410035,1767526482669,500.0,0.00016597,2]
[400410036,1767526482700,500.0,0.00016597,2]
[400410037,1767526482730,500.0,0.00016597,2]
[400410038,1767526482760,500.0,0.00016597,2]
[400410039,1767526482790,500.0,0.00016597,2]
[400410040,1767526482819,500.0,0.00016597,2]
[400410041,1767526482854,500.0,0.00016597,2]
[400410042,1767526482886,500.0,0.00016597,2]
[400410043,1767526482917,500.0,0.00016597,2]
[400410044,1767526482951,500.0,0.00016597,2]
[400410045,1767526482983,157.76981002,0.00016597,2]
[400410046,1767526483014,84.90665854,0.00016597,2]
[400410047,1767526483038,415.09334146,0.00016597,2]
[400410048,1767526483844,500.0,0.00016597,2]
[400410049,1767526483876,500.0,0.00016597,2]
[400410050,1767526483906,500.0,0.00016597,2]
[400410051,1767526483941,500.0,0.00016597,2]
[400410052,1767526483970,500.0,0.00016597,2]
[400410053,1767526484000,500.0,0.00016597,2]
[400410054,1767526484162,500.0,0.00016597,2]
[400410055,1767526484191,500.0,0.00016597,2]
[400410056,1767526484234,500.0,0.00016597,2]
[400410057,1767526484264,500.0,0.00016597,2]
[400410058,1767526484294,500.0,0.00016597,2]
[400410059,1767526484339,500.0,0.00016597,2]
[400410060,1767526484368,500.0,0.00016597,2]
[400410061,1767526484397,500.0,0.00016597,2]
[400410062,1767526484427,500.0,0.00016597,2]
[400410063,1767526484455,500.0,0.00016597,2]
[400410064,1767526484485,500.0,0.00016597,2]
[400410065,1767526484514,500.0,0.00016597,2]
[400410066,1767526484544,500.0,0.00016597,2]
[400410067,1767526484573,84.91665854,0.00016597,2]
[400410068,1767526484596,415.08334146,0.00016597,2]
[400410069,1767526484625,500.0,0.00016597,2]
[400410070,1767526484654,227.57696468,0.00016597,2]
[400410071,1767526484684,500.0,0.00016597,2]
[400410072,1767526484713,500.0,0.00016597,2]
[400410073,1767526484741,500.0,0.00016597,2]
[400410074,1767526484775,500.0,0.00016597,2]
[400410075,1767526484804,500.0,0.00016597,2]
[400410076,1767526484834,500.0,0.00016597,2]
[400410077,1767526484868,500.0,0.00016597,2]
[400410078,1767526484899,500.0,0.00016597,2]
[400410079,1767526484932,500.0,0.00016597,2]
[400410080,1767526484964,500.0,0.00016597,2]
[400410081,1767526484992,500.0,0.00016597,2]
[400410082,1767526485021,500.0,0.00016597,2]
[400410083,1767526485049,500.0,0.00016597,2]
[400410084,1767526485077,500.0,0.00016597,2]
[400410085,1767526485106,500.0,0.00016597,2]
[400410086,1767526485134,500.0,0.00016597,2]
[400410087,1767526485184,500.0,0.00016597,2]
[400410088,1767526485213,357.34969386,0.00016597,2]
[400410089,1767526485235,142.65030614,0.00016597,2]
[400410090,1767526485416,500.0,0.00016597,2]
[400410091,1767526489236,178.25018072,0.00016498,2]
[400410092,1767526496025,182.91489698,0.00016597,2]
[400410093,1767526496055,633.25304402,0.00016597,2]
[400410094,1767526496088,600.42250939,0.00016597,2]
[400410095,1767526496120,600.42250939,0.00016597,2]
[400410096,1767526496156,600.42250939,0.00016597,2]
[400410097,1767526496189,600.42250939,0.00016597,2]
[400410098,1767526496225,600.42250939,0.00016597,2]
[400410099,1767526496253,200.0,0.00016597,2]
[400410100,1767526496288,600.42250939,0.00016597,2]
[400410101,1767526496316,500.0,0.00016597,2]
[400410102,1767526496348,600.42250939,0.00016597,2]
[400410103,1767526496380,600.42250939,0.00016597,2]
[400410104,1767526496412,600.42250939,0.00016597,2]
[400410105,1767526496445,600.42250939,0.00016597,2]
[400410106,1767526496476,600.42250939,0.00016597,2]
[400410107,1767526496511,600.42250939,0.00016597,2]
[400410108,1767526496543,457.87145946,0.00016597,2]
[400410109,1767526496569,142.55104993,0.00016597,2]
[400410110,1767526496599,600.42250939,0.00016597,2]
[400410111,1767526496631,600.42250939,0.00016597,2]
[400410112,1767526496663,600.42250939,0.00016597,2]
[400410113,1767526496695,600.42250939,0.00016597,2]
[400410114,1767526496726,600.42250939,0.00016597,2]
[400410115,1767526496756,600.42250939,0.00016597,2]
[400410116,1767526496787,600.42250939,0.00016597,2]
[400410117,1767526496816,600.42250939,0.00016597,2]
[400410118,1767526496850,600.42250939,0.00016597,2]
[400410119,1767526496882,600.42250939,0.00016597,2]
[400410120,1767526496915,600.42250939,0.00016597,2]
[400410121,1767526496945,600.42250939,0.00016597,2]
[400410122,1767526496976,600.42250939,0.00016597,2]
[400410123,1767526497014,600.42250939,0.00016597,2]
[400410124,1767526497054,600.42250939,0.00016597,2]
[400410125,1767526497086,600.42250939,0.00016597,2]
[400410126,1767526497118,250.69879983,0.00016597,2]
[400410127,1767526497144,349.72370956,0.00016597,2]
[400410128,1767526497176,600.42250939,0.00016597,2]
[400410129,1767526497210,600.42250939,0.00016597,2]
[400410130,1767526497251,600.42250939,0.00016597,2]
[400410131,1767526497285,600.42250939,0.00016597,2]
[400410132,1767526497345,600.42250939,0.00016597,2]
[400410133,1767526497393,600.42250939,0.00016597,2]
[400410134,1767526497431,600.42250939,0.00016597,2]
[400410135,1767526497464,600.42250939,0.00016597,2]
[400410136,1767526497511,600.42250939,0.00016597,2]
[400410137,1767526497567,600.42250939,0.00016597,2]
[400410138,1767526497600,600.42250939,0.00016597,2]
[400410139,1767526497634,600.42250939,0.00016597,2]
[400410140,1767526497667,600.42250939,0.00016597,2]
[400410141,1767526497699,600.42250939,0.00016597,2]
[400410142,1767526497730,600.42250939,0.00016597,2]
[400410143,1767526501199,643.94864959,0.00016597,2]
[400410144,1767526501223,556.05135041,0.00016597,2]
[400410145,1767526501252,300.0,0.00016597,2]
[400410146,1767526501381,300.0,0.00016597,2]
[400410147,1767526505794,2000.0,0.00016597,2]
[400410148,1767526505852,354.01417055,0.00016597,2]
[400410149,1767526505891,500.0,0.00016597,2]
[400410150,1767526505939,500.0,0.00016597,2]
[400410151,1767526505985,500.0,0.00016597,2]
[400410152,1767526506020,500.0,0.00016597,2]
[400410153,1767526506049,500.0,0.00016597,2]
[400410154,1767526506080,500.0,0.00016597,2]
[400410155,1767526506110,500.0,0.00016597,2]
[400410156,1767526506140,500.0,0.00016597,2]
[400410157,1767526506169,500.0,0.00016597,2]
[400410158,1767526506198,500.0,0.00016597,2]
[400410159,1767526506231,500.0,0.00016597,2]
[400410160,1767526506266,500.0,0.00016597,2]
[400410161,1767526506303,489.94447904,0.00016597,2]
[400410162,1767526506327,10.05552096,0.00016597,2]
[400410163,1767526506358,500.0,0.00016597,2]
[400410164,1767526506388,500.0,0.00016597,2]
[400410165,1767526506422,500.0,0.00016597,2]
[400410166,1767526506451,500.0,0.00016597,2]
[400410167,1767526506492,500.0,0.00016597,2]
[400410168,1767526506537,500.0,0.00016597,2]
[400410169,1767526511020,200.0,0.00016597,2]
[400410175,1767526551689,779.34584,0.00016515,2]
[400410189,1767526561222,300.0,0.00016597,2]
[400410190,1767526561882,500.0,0.00016597,2]
[400410191,1767526561941,500.0,0.00016597,2]
[400410192,1767526562022,500.0,0.00016597,2]
[400410193,1767526562071,500.0,0.00016597,2]
[400410194,1767526562133,500.0,0.00016597,2]
[400410195,1767526562164,550.0,0.00016597,2]
[400410196,1767526562197,500.0,0.00016597,2]
[400410197,1767526562253,500.0,0.00016597,2]
[400410198,1767526562287,592.0677305,0.00016597,2]
[400410199,1767526562344,500.0,0.00016597,2]
[400410200,1767526562455,500.0,0.00016597,2]
[400410201,1767526562510,68.54090854,0.00016597,2]
[400410202,1767526562536,431.45909146,0.00016597,2]
[400410203,1767526562569,500.0,0.00016597,2]
[400410204,1767526563927,300.0,0.00016597,2]
[400410206,1767526571056,250.0,0.00043697,30]
[400410207,1767526571758,250.0,0.00043697,30]
[400410208,1767526572240,250.0,0.00043697,30]
[400410209,1767526572852,250.0,0.00043697,30]
[400410210,1767526573463,250.0,0.00043697,30]
[400410211,1767526574109,250.0,0.00043697,30]
[400410212,1767526574724,250.0,0.00043697,30]
[400410213,1767526575389,250.0,0.00043697,30]
[400410214,1767526575987,250.0,0.00043697,30]
[400410215,1767526576605,250.0,0.00043697,30]
[400410216,1767526577227,250.0,0.00043697,30]
[400410217,1767526577857,250.0,0.00043697,30]
[400410218,1767526595534,4372.21533099,0.00016498,2]
[400410219,1767526599221,5553.34821407,0.00043697,30]
[400410220,1767526608127,3745.82,0.00016438,2]
[400410221,1767526610159,186.16778178,0.00016498,2]
[400410222,1767526621171,300.0,0.00016597,2]
[400410223,1767526622220,153.40180852,0.00016597,2]
[400410224,1767526624291,10.94598725,0.00016597,2]
[400410225,1767526624318,489.05401275,0.00016597,2]
[400410226,1767526624369,500.0,0.00016597,2]
[400410227,1767526624411,500.0,0.00016597,2]
[400410228,1767526624448,500.0,0.00016597,2]
[400410229,1767526624501,500.0,0.00016597,2]
[400410230,1767526624570,185.54118948,0.00016597,2]
[400410231,1767526624662,500.0,0.00016597,2]
[400410232,1767526628040,200.0,0.00043697,30]